fUSD/lending_fUSD_20240205
["ID","MTS","AMOUNT","RATE_DAILY","PERIOD"]
[313337541,1707168653547,-593.78,0.00049863,31]
[313337542,1707168653556,-520.99,0.00049863,31]
[313337543,1707168653565,-1047.06,0.00049863,31]
[313337544,1707168653574,-739.41,0.00049863,31]
[313337545,1707168653583,-3062.6902915,0.00049866,2]
[313337546,1707168653593,-2708.106649,0.00049866,2]
[313337547,1707168653602,-595.0,0.0004989,3]
[313337548,1707168653611,-343.29811305,0.000499,120]
[313337549,1707168653620,-5727599.32572724,0.000499,8]
[313337550,1707168653630,-150.0,0.000499,40]
[313337551,1707168653639,-1649.64464685,0.000499,2]
[313337552,1707168653648,-905.32480141,0.0004997,120]
[313337553,1707168653658,-545.894,0.00049973,120]
[313337554,1707168653666,-5178.25538,0.00049973,30]
[313337555,1707168653675,-500.0,0.0004999,7]
[313337556,1707168653685,-500.0,0.0004999,7]
[313337557,1707168653694,-500.0,0.0004999,7]
[313337558,1707168653703,-500.0,0.0004999,7]
[313337559,1707168653711,-500.0,0.0004999,7]
[313337560,1707168653721,-500.0,0.0004999,7]
[313337561,1707168653730,-500.0,0.0004999,7]
[313337562,1707168653739,-500.0,0.0004999,7]
[313337563,1707168653748,-500.0,0.0004999,7]
[313337564,1707168653757,-500.0,0.0004999,7]
[313337565,1707168653766,-500.0,0.0004999,7]
[313337566,1707168653776,-500.0,0.0004999,7]
[313337567,1707168653786,-500.0,0.0004999,7]
[313337568,1707168653796,-500.0,0.0004999,7]
[313337569,1707168653805,-500.0,0.0004999,7]
[313337570,1707168653816,-500.0,0.0004999,7]
[313337571,1707168653827,-500.0,0.0004999,7]
[313337572,1707168653836,-500.0,0.0004999,7]
[313337573,1707168653846,-500.0,0.0004999,7]
[313337574,1707168653855,-500.0,0.0004999,7]
[313337575,1707168653864,-500.0,0.0004999,7]
[313337576,1707168653872,-500.0,0.0004999,7]
[313337577,1707168653881,-500.0,0.0004999,7]
[313337578,1707168653890,-500.0,0.0004999,7]
[313337579,1707168653899,-500.0,0.0004999,7]
[313337580,1707168653908,-500.0,0.0004999,7]
[313337581,1707168653917,-500.0,0.0004999,7]
[313337582,1707168653926,-500.0,0.0004999,7]
[313337583,1707168653935,-500.0,0.0004999,7]
[313337584,1707168653944,-500.0,0.0004999,7]
[313337585,1707168653953,-500.0,0.0004999,7]
[313337586,1707168653962,-500.0,0.0004999,7]
[313337587,1707168653973,-500.0,0.0004999,7]
[313337588,1707168653982,-500.0,0.0004999,7]
[313337589,1707168653992,-500.0,0.0004999,7]
[313337590,1707168654000,-500.0,0.0004999,7]
[313337591,1707168654009,-500.0,0.0004999,7]
[313337592,1707168654019,-500.0,0.0004999,7]
[313337593,1707168654028,-500.0,0.0004999,7]
[313337594,1707168654037,-500.0,0.0004999,7]
[313337595,1707168654046,-500.0,0.0004999,7]
[313337596,1707168654055,-500.0,0.0004999,7]
[313337597,1707168654064,-500.0,0.0004999,7]
[313337598,1707168654073,-500.0,0.0004999,7]
[313337599,1707168654083,-500.0,0.0004999,7]
[313337600,1707168654093,-500.0,0.0004999,7]
[313337601,1707168654102,-500.0,0.0004999,7]
[313337602,1707168654111,-500.0,0.0004999,7]
[313337603,1707168654121,-500.0,0.0004999,7]
[313337604,1707168654130,-500.0,0.0004999,7]
[313337605,1707168654139,-500.0,0.0004999,7]
[313337606,1707168654148,-500.0,0.0004999,7]
[313337607,1707168654157,-500.0,0.0004999,7]
[313337608,1707168654166,-500.0,0.0004999,7]
[313337609,1707168654175,-500.0,0.0004999,7]
[313337610,1707168654185,-500.0,0.0004999,7]
[313337611,1707168654194,-500.0,0.0004999,7]
[313337612,1707168654203,-500.0,0.0004999,7]
[313337613,1707168654212,-500.0,0.0004999,7]
[313337614,1707168654222,-500.0,0.0004999,7]
[313337615,1707168654235,-520.45,0.0004999,7]
[313337616,1707168654244,-1285.0,0.0004999,3]
[313337617,1707168654253,-548.0,0.0004999,3]
[313337618,1707168654262,-306.00443295,0.00049999,120]
[313337619,1707168654272,-267.42246993,0.00049999,120]
[313337620,1707168654281,-500.0,0.00049999,120]
[313337621,1707168654293,-644.24002856,0.00049999,120]
[313337622,1707168654304,-381.19156088,0.00049999,120]
[313337623,1707168654313,-648.73881577,0.00049999,120]
[313337624,1707168654322,-186.2328859,0.00049999,120]
[313337625,1707168654331,-488.98506522,0.00049999,120]
[313337626,1707168654340,-100000.0,0.0005,40]
[313337627,1707168654349,-163.96153542,0.0005,2]
[313337628,1707168654359,-1081.91162411,0.0005,2]
[313337629,1707168654368,-155.0,0.0005,4]
[313337630,1707168654377,-155.0,0.0005,4]
[313337631,1707168654386,-2500.0,0.0005,120]
[313337632,1707168654395,-622.27782309,0.0005,30]
[313337633,1707168654404,-7877.60387408,0.0005,4]
[313337634,1707168654413,-2964.75430104,0.0005,4]
[313337635,1707168654423,-337.57691712,0.0005,4]
[313337636,1707168654432,-2810.2109882,0.0005,10]
[313337637,1707168654441,-1214.81112439,0.0005,3]
[313337638,1707168654450,-11000.0,0.0005,60]
[313337639,1707168654460,-9541.39217702,0.0005,90]
[313337640,1707168654469,-1102.39553008,0.0005,7]
[313337641,1707168654479,-511.8,0.0005,7]
[313337642,1707168654488,-500.0,0.0005,14]
[313337643,1707168654498,-500.0,0.0005,7]
[313337644,1707168654507,-500.0,0.0005,7]
[313337645,1707168654517,-150.0,0.0005,120]
[313337646,1707168654528,-443.47544245,0.0005,120]
[313337647,1707168654538,-6000.0,0.0005,120]
[313337648,1707168654547,-20437.0,0.0005,11]
[313337649,1707168654557,-5000.00000099,0.0005,120]
[313337650,1707168654566,-1597.86,0.0005,7]
[313337651,1707168654577,-200.0,0.0005,27]
[313337652,1707168654588,-5048.87438057,0.0005,4]
[313337653,1707168654599,-300.0,0.0005,27]
[313337654,1707168654610,-490.0,0.0005,30]
[313337655,1707168654622,-566.0,0.0005,30]
[313337656,1707168654631,-150.0,0.0005,27]
[313337657,1707168654640,-153.51,0.0005006,2]
[313337658,1707168654649,-1774.39,0.00050143,5]
[313337659,1707168654660,-50000.0,0.000502,120]
[313337660,1707168654671,-50000.0,0.000502,120]
[313337661,1707168654680,-50000.0,0.000502,120]
[313337662,1707168654689,-50000.0,0.000502,120]
[313337663,1707168654698,-50000.0,0.000502,120]
[313337664,1707168654707,-3417.2739339,0.00050216,2]
[313337665,1707168654716,-545.894,0.00050219,120]
[313337666,1707168654725,-1000000.0,0.0005025,120]
[313337667,1707168654734,-375.95322675,0.0005025,2]
[313337668,1707168654743,-604.0,0.00050318,7]
[313337669,1707168654752,-526.14582221,0.00050399,14]
[313337670,1707168654762,-150.0,0.000504,40]
[313337671,1707168654771,-735.56,0.0005041,7]
[313337672,1707168654779,-517.51,0.0005041,31]
[313337673,1707168654789,-508.82,0.0005041,31]
[313337674,1707168654797,-561.89424083,0.0005041,31]
[313337675,1707168654806,-593.78,0.0005041,31]
[313337676,1707168654819,-520.99,0.0005041,31]
[313337677,1707168654828,-1047.06,0.0005041,31]
[313337678,1707168654838,-739.41,0.0005041,31]
[313337679,1707168654847,-545.894,0.00050493,120]
[313337680,1707168654857,-187.41937372,0.000505,30]
[313337681,1707168654866,-156.71284436,0.000505,2]
[313337682,1707168654877,-1000000.0,0.000505,120]
[313337683,1707168654888,-200.0,0.000505,28]
[313337684,1707168654898,-308.08346996,0.000505,30]
[313337685,1707168654908,-1649.64464685,0.000505,2]
[313337686,1707168654918,-157.33149856,0.00050646,55]
[313337687,1707168654926,-1736.557779,0.000507,26]
[313337688,1707168654936,-1000000.0,0.0005075,120]
[313337689,1707168654945,-251.0,0.00050751,28]
[313337690,1707168654954,-505.87,0.000508,7]
[313337691,1707168654963,-649.75,0.000508,7]
[313337692,1707168654973,-154.0,0.000508,60]
[313337693,1707168654982,-7003.0,0.0005089,90]
[313337694,1707168654991,-746.0,0.0005089,2]
[313337695,1707168655001,-584.0,0.0005089,2]
[313337696,1707168655011,-1341.6301,0.000509,30]
[313337697,1707168655021,-117206.65376203,0.000509,14]
[313337698,1707168655030,-150.0,0.000509,40]
[313337699,1707168655040,-5724.648769,0.000509,61]
[313337700,1707168655049,-881.2432266,0.000509,21]
[313337701,1707168655058,-300.0,0.000509,21]
[313337702,1707168655067,-1965.965701,0.000509,33]
[313337703,1707168655077,-1982.297405,0.000509,33]
[313337704,1707168655086,-161.66895401,0.000509,12]
[313337705,1707168655095,-150.0,0.000509,28]
[313337706,1707168655104,-29794.38013453,0.000509,120]
[313337707,1707168655113,-16880.99171492,0.00050956,14]
[313337708,1707168655123,-735.56,0.00050958,7]
[313337709,1707168655133,-517.51,0.00050958,31]
[313337710,1707168655142,-508.82,0.00050958,31]
[313337711,1707168655151,-593.78,0.00050958,31]
[313337712,1707168655160,-520.99,0.00050958,31]
[313337713,1707168655170,-1047.06,0.00050958,31]
[313337714,1707168655179,-739.41,0.00050958,31]
[313337715,1707168655188,-150.5,0.0005096,120]
[313337716,1707168655197,-435.0,0.0005096,120]
[313337717,1707168655206,-200.0,0.0005096,120]
[313337718,1707168655216,-3771.8575763,0.00050965,2]
[313337719,1707168655228,-152.0,0.0005097,120]
[313337720,1707168655237,-150.5,0.0005097,120]
[313337721,1707168655246,-200.0,0.0005097,120]
[313337722,1707168655255,-435.0,0.0005097,120]
[313337723,1707168655264,-150.5,0.0005097,120]
[313337724,1707168655273,-200.0,0.0005097,120]
[313337725,1707168655283,-435.0,0.0005097,120]
[313337726,1707168655293,-150.5,0.0005098,120]
[313337727,1707168655305,-150.5,0.0005098,120]
[313337728,1707168655316,-200.0,0.0005098,120]
[313337729,1707168655326,-435.0,0.0005098,120]
[313337730,1707168655335,-150.5,0.0005098,120]
[313337731,1707168655344,-200.0,0.0005098,120]
[313337732,1707168655354,-435.0,0.0005098,120]
[313337733,1707168655363,-207.0,0.0005098,120]
[313337734,1707168655373,-441.0,0.0005098,120]
[313337735,1707168655384,-272.56,0.0005099,120]
[313337736,1707168655393,-150.5,0.0005099,120]
[313337737,1707168655403,-150.5,0.0005099,120]
[313337738,1707168655417,-200.0,0.0005099,120]
[313337739,1707168655428,-435.0,0.0005099,120]
[313337740,1707168655439,-206.0,0.0005099,120]
[313337741,1707168655448,-200.0,0.0005099,120]
[313337742,1707168655457,-435.0,0.0005099,120]
[313337743,1707168655466,-100000.0,0.00051,41]
[313337744,1707168655476,-520751.48,0.00051,120]
[313337745,1707168655485,-10233.0,0.00051,7]
[313337746,1707168655494,-524.88177921,0.00051,7]
[313337747,1707168655503,-432.0,0.00051,120]
[313337748,1707168655512,-296.95059911,0.00051,20]
[313337749,1707168655521,-6848.3914264,0.00051,14]
[313337750,1707168655531,-151315.90493196,0.00051,60]
[313337751,1707168655539,-153.64289445,0.00051,60]
[313337752,1707168655549,-620.96672791,0.00051,30]
[313337753,1707168655558,-36475.80185329,0.00051,10]
[313337754,1707168655571,-150.0,0.00051,10]
[313337755,1707168655581,-4239.73010368,0.00051,2]
[313337756,1707168655591,-14535.21691555,0.00051,2]
[313337757,1707168655600,-10353.62189158,0.00051,60]
[313337758,1707168655610,-500000.0,0.00051,120]
[313337759,1707168655619,-300.0,0.00051,51]
[313337760,1707168655628,-1527.0,0.00051,60]
[313337761,1707168655638,-1000000.0,0.00051,120]
[313337762,1707168655647,-30586.0,0.00051,30]
[313337763,1707168655657,-377.9452023,0.00051,120]
[313337764,1707168655666,-331.45208262,0.00051,10]
[313337765,1707168655677,-1046.58649975,0.00051,10]
[313337766,1707168655688,-5000.0,0.00051,60]
[313337767,1707168655698,-550.0,0.00051,120]
[313337768,1707168655708,-250.0,0.00051,120]
[313337769,1707168655718,-1000000.0,0.00051,30]
[313337770,1707168655729,-455.42052848,0.00051,120]
[313337771,1707168655738,-1624.30416303,0.00051,20]
[313337772,1707168655748,-207557.66,0.00051,15]
[313337773,1707168655757,-160.92,0.00051,60]
[313337774,1707168655766,-200.0,0.00051,29]
[313337775,1707168655775,-1000.0,0.00051,2]
[313337776,1707168655785,-300.0,0.00051,29]
[313337777,1707168655795,-150.0,0.00051,29]
[313337778,1707168655806,-4126.4412187,0.00051041,2]
[313337779,1707168655815,-157.33149857,0.00051146,58]
[313337780,1707168655824,-5000.0,0.000512,120]
[313337781,1707168655836,-149999.0,0.000512,60]
[313337782,1707168655845,-37281.0,0.000512,30]
[313337783,1707168655855,-1000000.0,0.0005125,120]
[313337784,1707168655864,-450.0,0.0005126,15]
[313337785,1707168655873,-500.0,0.00051308,14]
[313337786,1707168655882,-1780.67,0.00051308,120]
[313337787,1707168655892,-229.0621188,0.000514,30]
[313337788,1707168655901,-500.0,0.000514,120]
[313337789,1707168655910,-4185.59106682,0.000514,5]
[313337790,1707168655919,-150.0,0.000514,40]
[313337791,1707168655928,-2000.0,0.00051424,120]
[313337792,1707168655938,-6112.24206571,0.00051448,20]
[313337793,1707168655947,-1544.0,0.0005149,120]
[313337794,1707168655957,-1000000.0,0.000515,120]
[313337795,1707168655966,-479.89552464,0.000515,2]
[313337796,1707168655975,-512.77,0.000515,60]
[313337797,1707168655984,-251.93,0.000515,45]
[313337798,1707168655994,-13514.0,0.000515,30]
[313337799,1707168656003,-505.87,0.000515,7]
[313337800,1707168656012,-649.75,0.000515,7]
[313337801,1707168656021,-1597.85,0.000515,7]
[313337802,1707168656029,-200.0,0.000515,29]
[313337803,1707168656039,-1649.64464685,0.000515,2]
[313337804,1707168656048,-2229.297997,0.00051506,120]
[313337805,1707168656057,-735.56,0.00051506,7]
[313337806,1707168656067,-517.51,0.00051506,31]
[313337807,1707168656075,-508.82,0.00051506,31]
[313337808,1707168656085,-593.78,0.00051506,31]
[313337809,1707168656095,-520.99,0.00051506,31]
[313337810,1707168656104,-1047.06,0.00051506,31]
[313337811,1707168656113,-739.41,0.00051506,31]
[313337812,1707168656123,-220.73336108,0.00051532,11]
[313337813,1707168656134,-162.45846431,0.00051532,11]
[313337814,1707168656143,-428.10416093,0.00051535,120]
[313337815,1707168656152,-163.14637617,0.00051539,32]
[313337816,1707168656160,-703.04604799,0.00051539,60]
[313337817,1707168656285,-210.0,0.0005157,120]
[313337818,1707168656298,-1208.0,0.00051592,30]
[313337819,1707168656308,-154.0,0.000516,60]
[313337820,1707168656317,-242.48855244,0.00051615,30]
[313337821,1707168656327,-1000.0,0.00051615,30]
[313337822,1707168656336,-1836.47589378,0.00051615,30]
[313337823,1707168656345,-522.41558942,0.00051615,30]
[313337824,1707168656355,-756.55967704,0.00051615,30]
[313337825,1707168656364,-1026.30917857,0.00051615,30]
[313337826,1707168656375,-244.49612954,0.00051615,30]
[313337827,1707168656384,-1970.8679233,0.0005165,30]
[313337828,1707168656394,-500.0,0.00051655,5]
[313337829,1707168656404,-500.0,0.00051679,5]
[313337830,1707168656414,-150.5,0.0005168,120]
[313337831,1707168656424,-435.0,0.0005168,120]
[313337832,1707168656433,-200.0,0.0005168,120]
[313337833,1707168656443,-856.46,0.00051686,5]
[313337834,1707168656453,-150.5,0.0005169,120]
[313337835,1707168656462,-435.0,0.0005169,120]
[313337836,1707168656474,-200.0,0.0005169,120]
[313337837,1707168656484,-2000.0,0.00051694,120]
[313337838,1707168656493,-1889.06011473,0.00051694,120]
[313337839,1707168656505,-300.000001,0.000517,30]
[313337840,1707168656517,-6519.70758918,0.000517,120]
[313337841,1707168656527,-350.59437838,0.0005172,30]
[313337842,1707168656537,-172.77909906,0.0005172,30]
[313337843,1707168656546,-334.28258816,0.0005172,30]
[313337844,1707168656555,-152.27895788,0.0005172,30]
[313337845,1707168656564,-387.50628117,0.00051761,30]
[313337846,1707168656573,-251.0,0.00051787,28]
[313337847,1707168656582,-3660.8,0.00051788,117]
[313337848,1707168656592,-500.0,0.000518,60]
[313337849,1707168656601,-500.0,0.000518,60]
[313337850,1707168656610,-996.0,0.000518,60]
[313337851,1707168656620,-9999.0,0.000518,30]
[313337852,1707168656630,-9999.0,0.000518,30]
[313337853,1707168656641,-9999.0,0.000518,30]
[313337854,1707168656651,-9999.0,0.000518,30]
[313337855,1707168656661,-9999.0,0.000518,30]
[313337856,1707168656670,-4208.0,0.000518,30]
[313337857,1707168656681,-23858.86334,0.000518,60]
[313337858,1707168656691,-267.52740475,0.00051804,30]
[313337859,1707168656701,-1000.0,0.00051804,30]
[313337860,1707168656710,-1124.73721591,0.00051804,30]
[313337861,1707168656722,-769.28051194,0.00051843,2]
[313337862,1707168656732,-521.72324569,0.00051854,30]
[313337863,1707168656741,-175.29718919,0.00051854,30]
[313337864,1707168656751,-206.45783214,0.00051854,30]
[313337865,1707168656761,-204.51356837,0.00051854,30]
[313337866,1707168656772,-179.2412,0.0005187,120]
[313337867,1707168656783,-10804.6895621,0.000519,30]
[313337868,1707168656792,-64096.41373177,0.000519,120]
[313337869,1707168656803,-505.87,0.000519,7]
[313337870,1707168656813,-150.0,0.000519,40]
[313337871,1707168656822,-169.0,0.000519,60]
[313337872,1707168656831,-881.2432266,0.000519,24]
[313337873,1707168656840,-353.641129,0.000519,24]
[313337874,1707168656850,-150.0,0.00051909,60]
[313337875,1707168656859,-150.0,0.0005191,60]
[313337876,1707168656868,-150.0,0.00051914,60]
[313337877,1707168656877,-150.0,0.00051915,60]
[313337878,1707168656886,-150.0,0.00051917,60]
[313337879,1707168656895,-150.0,0.00051926,60]
[313337880,1707168656904,-150.0,0.0005193,60]
[313337881,1707168656913,-500.0,0.0005193,14]
[313337882,1707168656922,-150.0,0.00051941,60]
[313337883,1707168656931,-206.0,0.00051959,40]
[313337884,1707168656940,-150.0,0.00051961,60]
[313337885,1707168656949,-150.0,0.00051973,60]
[313337886,1707168656958,-150.0,0.00051976,60]
[313337887,1707168656967,-292.48236058,0.0005198,60]
[313337888,1707168656976,-200.0,0.00051987,99]
[313337889,1707168656984,-200.0,0.00051987,94]
[313337890,1707168656993,-200.0,0.00051987,86]
[313337891,1707168657002,-200.0,0.00051987,82]
[313337892,1707168657011,-150.0,0.00051991,60]
[313337893,1707168657020,-1000.0,0.00051999,120]
[313337894,1707168657029,-860.4883865,0.00051999,40]
[313337895,1707168657039,-100000.0,0.00052,42]
[313337896,1707168657048,-58094.64251592,0.00052,30]
[313337897,1707168657057,-54519.3,0.00052,30]
[313337898,1707168657066,-150.0,0.00052,66]
[313337899,1707168657075,-1000000.0,0.00052,45]
[313337900,1707168657084,-530.0,0.00052,120]
[313337901,1707168657093,-279.87013752,0.00052,15]
[313337902,1707168657102,-150.0,0.00052,10]
[313337903,1707168657111,-15079.70272262,0.00052,5]
[313337904,1707168657120,-1092.91670806,0.00052,12]
[313337905,1707168657129,-194.83769603,0.00052,120]
[313337906,1707168657139,-468.30085922,0.00052,7]
[313337907,1707168657149,-262.34318792,0.00052,30]
[313337908,1707168657158,-206.2953819,0.00052,60]
[313337909,1707168657168,-1136.0,0.00052,120]
[313337910,1707168657177,-20000.0,0.00052,120]
[313337911,1707168657186,-3115.28,0.00052,120]
[313337912,1707168657195,-2804.0,0.00052,120]
[313337913,1707168657204,-4000.0,0.00052,120]
[313337914,1707168657213,-4000.0,0.00052,120]
[313337915,1707168657224,-4000.0,0.00052,120]
[313337916,1707168657233,-4000.0,0.00052,120]
[313337917,1707168657242,-4000.0,0.00052,120]
[313337918,1707168657251,-4000.0,0.00052,120]
[313337919,1707168657262,-4000.0,0.00052,120]
[313337920,1707168657270,-4083.3668,0.00052,120]
[313337921,1707168657279,-411.0,0.00052,60]
[313337922,1707168657288,-4548.30554247,0.00052,120]
[313337923,1707168657299,-400000.0,0.00052,120]
[313337924,1707168657308,-182.051395,0.00052,20]
[313337925,1707168657317,-751.0,0.00052,120]
[313337926,1707168657326,-342.0,0.00052,120]
[313337927,1707168657334,-496.69377245,0.00052,30]
[313337928,1707168657343,-10044.75393489,0.00052,60]
[313337929,1707168657353,-2035.27490541,0.00052,30]
[313337930,1707168657362,-15001.3746154,0.00052,30]
[313337931,1707168657371,-5000.0,0.00052,60]
[313337932,1707168657379,-70716.60905592,0.00052,10]
[313337933,1707168657388,-303.4721853,0.00052,30]
[313337934,1707168657397,-5000.0,0.00052,120]
[313337935,1707168657406,-10038.08163879,0.00052,30]
[313337936,1707168657415,-250.0,0.00052,120]
[313337937,1707168657424,-300.0,0.00052,120]
[313337938,1707168657434,-390.0,0.00052,120]
[313337939,1707168657442,-507.0,0.00052,120]
[313337940,1707168657452,-659.0,0.00052,120]
[313337941,1707168657461,-856.0,0.00052,120]
[313337942,1707168657471,-1113.0,0.00052,120]
[313337943,1707168657480,-594.0,0.00052,120]
[313337944,1707168657489,-6534.65999183,0.00052,30]
[313337945,1707168657498,-649.75,0.00052,7]
[313337946,1707168657507,-1178.66103401,0.00052,2]
[313337947,1707168657516,-200.0,0.00052,30]
[313337948,1707168657525,-300.0,0.00052,30]
[313337949,1707168657535,-151.23,0.00052,120]
[313337950,1707168657544,-151.23,0.00052,120]
[313337951,1707168657553,-151.23,0.00052,120]
[313337952,1707168657562,-151.23,0.00052,120]
[313337953,1707168657572,-151.23,0.00052,120]
[313337954,1707168657581,-151.23,0.00052,120]
[313337955,1707168657590,-150.0,0.00052,30]
[313337956,1707168657599,-151.23,0.00052,120]
[313337957,1707168657608,-151.23,0.00052,120]
[313337958,1707168657617,-151.23,0.00052,120]
[313337959,1707168657626,-151.23,0.00052,120]
[313337960,1707168657635,-151.23,0.00052,120]
[313337961,1707168657645,-151.23,0.00052,120]
[313337962,1707168657654,-151.23,0.00052,120]
[313337963,1707168657663,-151.23,0.00052,120]
[313337964,1707168657672,-151.23,0.00052,120]
[313337965,1707168657681,-151.23,0.00052,120]
[313337966,1707168657692,-151.23,0.00052,120]
[313337967,1707168657701,-151.23,0.00052,120]
[313337968,1707168657711,-151.23,0.00052,120]
[313337969,1707168657720,-151.23,0.00052,120]
[313337970,1707168657729,-151.23,0.00052,120]
[313337971,1707168657738,-151.23,0.00052,120]
[313337972,1707168657747,-151.23,0.00052,120]
[313337973,1707168657756,-151.23,0.00052,120]
[313337974,1707168657766,-151.23,0.00052,120]
[313337975,1707168657775,-151.23,0.00052,120]
[313337976,1707168657784,-151.23,0.00052,120]
[313337977,1707168657793,-151.23,0.00052,120]
[313337978,1707168657802,-151.23,0.00052,120]
[313337979,1707168657812,-151.23,0.00052,120]
[313337980,1707168657821,-151.23,0.00052,120]
[313337981,1707168657830,-151.23,0.00052,120]
[313337982,1707168657840,-151.23,0.00052,120]
[313337983,1707168657849,-151.23,0.00052,120]
[313337984,1707168657859,-151.23,0.00052,120]
[313337985,1707168657868,-151.23,0.00052,120]
[313337986,1707168657877,-151.23,0.00052,120]
[313337987,1707168657887,-151.23,0.00052,120]
[313337988,1707168657896,-151.23,0.00052,120]
[313337989,1707168657905,-151.23,0.00052,120]
[313337990,1707168657915,-151.23,0.00052,120]
[313337991,1707168657925,-151.23,0.00052,120]
[313337992,1707168657934,-151.23,0.00052,120]
[313337993,1707168657943,-151.23,0.00052,120]
[313337994,1707168657952,-151.23,0.00052,120]
[313337995,1707168657961,-151.23,0.00052,120]
[313337996,1707168657970,-151.23,0.00052,120]
[313337997,1707168657979,-151.23,0.00052,120]
[313337998,1707168657988,-151.23,0.00052,120]
[313337999,1707168657997,-151.23,0.00052,120]
[313338000,1707168658006,-151.23,0.00052,120]
[313338001,1707168658015,-151.23,0.00052,120]
[313338002,1707168658024,-151.23,0.00052,120]
[313338003,1707168658034,-151.23,0.00052,120]
[313338004,1707168658043,-151.23,0.00052,120]
[313338005,1707168658052,-151.23,0.00052,120]
[313338006,1707168658061,-151.23,0.00052,120]
[313338007,1707168658071,-151.23,0.00052,120]
[313338008,1707168658081,-151.23,0.00052,120]
[313338009,1707168658091,-151.23,0.00052,120]
[313338010,1707168658102,-151.23,0.00052,120]
[313338011,1707168658113,-151.23,0.00052,120]
[313338012,1707168658123,-151.23,0.00052,120]
[313338013,1707168658132,-151.23,0.00052,120]
[313338014,1707168658141,-151.23,0.00052,120]
[313338015,1707168658150,-151.23,0.00052,120]
[313338016,1707168658159,-151.23,0.00052,120]
[313338017,1707168658169,-151.23,0.00052,120]
[313338018,1707168658178,-151.23,0.00052,120]
[313338019,1707168658187,-151.23,0.00052,120]
[313338020,1707168658196,-151.23,0.00052,120]
[313338021,1707168658205,-151.23,0.00052,120]
[313338022,1707168658216,-151.23,0.00052,120]
[313338023,1707168658227,-271815.4956591,0.00052018,120]
[313338024,1707168658334,-6613242.3443409,0.00052018,120]
[313338025,1707168658344,-375.95322675,0.00052018,2]
[313338026,1707168658353,-1649.64464685,0.00052018,2]
[313338027,1707168658362,-557.324499,0.00052054,120]
[313338028,1707168658371,-1383.399797,0.00052054,120]
[313338029,1707168658380,-1383.399794,0.00052054,120]
[313338030,1707168658389,-5297.447132,0.00052054,120]
[313338031,1707168658398,-165.012879,0.00052054,120]
[313338032,1707168658407,-750.0,0.00052054,31]
[313338033,1707168658417,-550.0,0.00052054,7]
[313338034,1707168658426,-735.56,0.00052054,7]
[313338035,1707168658436,-517.51,0.00052054,31]
[313338036,1707168658445,-211.9775,0.00052054,120]
[313338037,1707168658455,-508.82,0.00052054,31]
[313338038,1707168658464,-593.78,0.00052054,31]
[313338039,1707168658474,-520.99,0.00052054,31]
[313338040,1707168658483,-1047.06,0.00052054,31]